bitfinex/quotes_ETHUSD_20250923
["timestamp","ask_amount","ask_price","bid_price","bid_amount"]
[1758596081990,7.20901254,4154.1,4154.0,0.0089]
[1758596082189,6.69873477,4154.1,4154.0,0.0089]
[1758596082393,7.40333477,4154.1,4154.0,0.0089]
[1758596082591,6.93533477,4154.1,4154.0,0.0089]
[1758596082792,6.69873477,4154.1,4154.0,0.0089]
[1758596083127,7.40333477,4154.1,4154.0,0.0089]
[1758596083280,0.53073477,4154.1,4154.0,0.0089]
[1758596083466,6.167,4154.1,4154.0,0.0089]
[1758596083690,6.8716,4154.1,4154.0,0.0089]
[1758596083909,0.7046,4154.1,4154.0,0.0089]
[1758596084506,5.3976,4154.1,4154.0,0.0089]
[1758596084807,0.468,4154.4,4154.0,0.0089]
[1758596084984,6.165,4154.3,4154.0,0.0089]
[1758596085188,1.19722322,4154.2,4154.0,0.0089]
[1758596085510,1.91332322,4154.2,4154.0,0.0089]
[1758596085803,6.165,4154.1,4154.0,0.0089]
[1758596086215,6.4087,4154.1,4154.0,0.0089]
[1758596086371,6.165,4154.1,4154.0,0.0089]
[1758596086576,6.849196,4154.1,4154.0,0.0089]
[1758596086812,3.0,4155.2,4154.0,0.0089]
[1758596086813,2.082,4155.3,4154.3,0.792]
[1758596086994,4.081,4155.2,4154.3,0.5625]
[1758596087174,4.081,4155.2,4154.2,0.792]
[1758596087175,0.4724,4155.1,4154.2,0.792]
[1758596087384,0.73894404,4155.0,4154.3,0.4478]
[1758596087601,4.088,4154.9,4154.3,0.4478]
[1758596087801,4.088,4154.9,4154.3,2.85492608]
[1758596087971,4.088,4154.9,4154.3,0.4478]
[1758596088178,4.088,4154.9,4154.0,0.0089]
[1758596088179,0.12,4154.3,4154.0,0.0089]
[1758596088418,0.7161,4154.8,4154.0,0.0089]
[1758596088419,4.087,4154.2,4154.0,0.0089]
[1758596088603,4.3307,4154.2,4154.0,0.0089]
[1758596089530,4.087,4154.2,4154.0,0.0089]
[1758596089693,1.333,4154.1,4154.0,0.0089]
[1758596090975,1.84368095,4154.1,4154.0,0.0089]
[1758596091180,1.84368095,4154.1,4153.5,0.004]
[1758596091379,0.35461728,4154.0,4152.6,0.30307985]
[1758596091614,0.85164841,4153.6,4152.6,0.30307985]
[1758596091786,3.0,4153.4,4152.6,0.30307985]
[1758596092035,0.73231328,4153.3,4152.7,0.4478]
[1758596092235,4.128,4153.2,4152.8,0.792]
[1758596092475,4.128,4153.1,4152.9,0.5954]
[1758596092623,0.23666431,4153.9,4152.9,0.5954]
[1758596092816,0.23666431,4153.9,4152.7,2.40806936]
[1758596092817,5.5211,4153.8,4153.5,0.004]
[1758596093021,0.73230048,4153.7,4153.5,0.004]
[1758596093220,0.73230048,4153.6,4152.6,0.30307985]
[1758596093420,3.0,4153.4,4152.6,0.30307985]
[1758596093620,0.85164841,4153.2,4152.6,0.30307985]
[1758596093857,7.79946456,4153.1,4152.6,0.30307985]
[1758596094055,7.08336456,4153.0,4152.6,0.30307985]
[1758596094219,1.33776456,4152.9,4152.6,0.30307985]
[1758596094423,1.70610586,4152.8,4152.6,0.30307985]
[1758596094672,6.95030048,4152.7,4152.6,0.30307985]
[1758596094821,4.64864022,4152.7,4152.6,0.30307985]
[1758596095042,0.85164841,4153.6,4152.6,0.75087985]
[1758596095225,8.09075846,4153.5,4152.6,0.30307985]
[1758596095443,2.94771005,4153.4,4152.6,0.30307985]
[1758596095742,4.58181005,4153.3,4152.6,0.30307985]
[1758596095959,7.08971005,4153.2,4152.6,0.30307985]
[1758596096273,0.86571005,4153.1,4152.6,0.30307985]
[1758596096470,7.08871005,4153.0,4152.6,0.30307985]
[1758596096770,3.0,4153.6,4152.6,0.30307985]
[1758596096771,4.89664025,4152.9,4152.6,0.30307985]
[1758596096954,0.51085725,4152.8,4152.6,0.30307985]
[1758596097118,3.634,4152.7,4152.6,0.30307985]
[1758596097322,0.51146033,4152.7,4152.6,1.09507985]
[1758596097535,0.51146033,4152.7,4152.6,0.30307985]
[1758596097536,4.67546033,4152.7,4152.6,0.30307985]
[1758596098057,4.89757742,4152.7,4152.6,0.30307985]
[1758596098260,5.61367742,4152.7,4152.6,0.22901468]
[1758596098445,8.74690413,4152.7,4152.6,0.22901468]
[1758596098648,4.58290413,4152.7,4152.6,0.22901468]
[1758596098820,2.14543596,4152.7,4152.6,0.22901468]
[1758596099163,7.01457742,4152.7,4152.6,0.22901468]
[1758596099336,7.14779345,4152.7,4152.6,0.22901468]
[1758596099562,7.01457742,4152.7,4152.6,0.22901468]
[1758596099761,4.93257742,4152.7,4152.6,1.02101468]
[1758596099973,7.01457742,4152.7,4152.6,1.02101468]
[1758596100176,7.01444271,4152.7,4152.6,0.22901468]
[1758596100359,4.70946033,4152.7,4152.6,0.22901468]
[1758596100795,4.95316033,4152.7,4152.6,0.22901468]
[1758596100958,5.30811296,4152.7,4152.6,0.22901468]
[1758596101164,8.30811296,4152.7,4149.1,0.4678]
[1758596101393,8.30811296,4152.7,4149.1,0.02]
[1758596101394,3.0,4151.7,4149.1,0.02]
[1758596101689,0.8525233,4150.3,4149.1,0.02]
[1758596101993,10.14941296,4150.2,4149.1,0.02]
[1758596102154,3.0,4150.1,4149.1,0.02]
[1758596102485,1.6950068,4149.5,4149.1,0.02]
[1758596102690,0.86641296,4149.4,4149.1,0.02]
[1758596102897,0.84760059,4149.2,4149.1,0.02]
[1758596103065,7.99601355,4149.2,4149.1,0.02]
[1758596103265,1.71401355,4149.2,4149.1,0.02]
[1758596103475,7.14841296,4149.2,4149.1,0.02]
[1758596103790,0.86641296,4149.2,4149.1,0.02]
[1758596103993,0.86641296,4149.2,4149.1,1.4967]
[1758596103994,6.92756119,4149.2,4149.1,1.4967]
[1758596104214,0.51146033,4149.2,4149.1,1.4967]
[1758596104358,4.199,4149.2,4149.1,1.4967]
[1758596104668,0.84760059,4150.3,4149.2,0.792]
[1758596104856,7.14126354,4150.2,4149.4,0.792]
[1758596105055,0.85926354,4150.1,4149.1,0.02]
[1758596105256,2.59715065,4150.0,4149.9,3.20169127]
[1758596105491,2.09,4150.0,4149.9,4.4767]
[1758596105654,2.09,4150.0,4149.9,1.4767]
[1758596105990,0.84760059,4151.0,4150.0,0.792]
[1758596106299,0.84760059,4151.0,4149.9,1.4767]
[1758596106300,2.083,4150.4,4150.2,0.792]
[1758596106594,0.50687285,4150.3,4150.2,2.40952243]
[1758596106909,1.776,4151.1,4150.8,3.792]
[1758596107118,2.2825727,4151.0,4150.4,0.792]
[1758596107317,4.197,4150.9,4150.3,3.20140697]
[1758596107488,4.197,4150.8,4150.5,0.792]
[1758596107674,4.197,4150.8,4150.7,0.792]
[1758596108010,4.70249367,4150.8,4150.7,1.0289]
[1758596108226,4.70249367,4150.8,4150.5,0.792]
[1758596108390,0.50649367,4150.7,4150.5,3.20133288]
[1758596108717,4.196,4151.1,4150.8,0.792]
[1758596109011,0.50649151,4151.0,4150.6,3.792]
[1758596109198,0.5065677,4150.9,4150.0,0.2369]
[1758596109389,0.5065677,4150.8,4150.1,3.0]
[1758596109589,2.5895677,4150.7,4150.1,2.40956924]
[1758596109768,2.5895677,4150.7,4150.0,0.2369]
[1758596109769,4.7035677,4150.6,4149.4,2.40998698]
[1758596109971,4.7035677,4150.6,4149.1,0.02]
[1758596109972,2.29010593,4150.5,4149.1,0.02]
[1758596110198,0.84760059,4150.2,4149.1,0.02]
[1758596110414,0.72640534,4150.1,4149.5,0.004]
[1758596110592,3.00976309,4152.2,4150.0,2.40963855]
[1758596110593,0.84760059,4150.6,4150.0,2.40963855]
[1758596110771,0.7261617,4150.5,4150.0,3.09429872]
[1758596110970,0.50637224,4150.4,4150.1,1.0289]
[1758596111213,0.50637224,4150.4,4149.5,3.004]
[1758596111214,4.70337224,4150.3,4149.9,0.792]
[1758596111519,2.53037224,4150.2,4149.9,1.0289]
[1758596111734,0.50637224,4150.1,4150.0,0.792]
[1758596112024,0.50637224,4150.1,4150.0,3.43853855]
[1758596112187,4.70237224,4150.1,4150.0,3.64943855]
[1758596112392,0.50637224,4150.1,4150.0,3.64943855]
[1758596112609,0.62637224,4150.1,4150.0,1.4767]
[1758596112773,0.62637224,4150.1,4150.0,1.0289]
[1758596113115,0.62637224,4150.1,4150.0,0.792]
[1758596113421,0.62637224,4150.1,4150.0,3.20163855]
[1758596113579,4.82237224,4150.1,4150.0,3.43853855]
[1758596113780,0.62637224,4150.1,4150.0,3.88633855]
[1758596113975,2.083,4151.1,4150.9,0.792]
[1758596114189,4.92081232,4151.0,4150.9,0.792]
[1758596114409,0.72581232,4151.0,4150.9,3.43801609]
[1758596114626,4.92089704,4151.0,4150.9,3.43801609]
[1758596114831,4.92089704,4151.0,4150.8,0.792]
[1758596115032,1.44199704,4150.9,4150.8,0.792]
[1758596115238,1.44199704,4150.9,4150.1,0.792]
[1758596115414,1.35874179,4150.8,4150.1,0.792]
[1758596115616,1.35874179,4150.8,4149.6,20.27146368]
[1758596115617,0.72589704,4150.7,4149.4,0.2304]
[1758596115813,0.72589704,4150.7,4149.5,0.004]
[1758596115814,0.12,4149.9,4149.5,0.004]
[1758596116021,4.70021749,4149.8,4149.5,0.004]
[1758596116361,0.72592813,4149.7,4149.5,0.004]
[1758596116522,0.72592813,4149.6,4149.5,0.004]
[1758596116842,0.72592813,4149.6,4149.5,19.82766368]
[1758596116843,0.50621749,4149.6,4149.5,19.82766368]
[1758596117003,0.50621749,4149.6,4149.5,20.61966368]
[1758596117208,0.72595761,4149.6,4149.5,0.796]
[1758596117408,0.72595761,4149.6,4149.5,3.2059289]
[1758596117645,0.72595761,4149.6,4149.5,0.796]
[1758596118008,0.72595761,4149.6,4149.5,3.4363289]
[1758596118212,0.72608017,4149.6,4149.5,3.4363289]
[1758596118556,0.72608017,4149.6,4149.5,3.9065289]
[1758596118557,0.50621749,4149.6,4149.5,3.9065289]
[1758596118844,0.50621749,4149.6,4149.5,1.4966]
[1758596119067,1.52918173,4149.6,4149.5,0.004]
[1758596119213,1.52918173,4149.6,4149.1,0.02]
[1758596119214,9.49931141,4149.6,4149.1,0.02]
[1758596119418,3.85818173,4149.5,4148.1,0.02]
[1758596119657,1.2669133,4148.3,4148.1,0.02]
[1758596119818,7.14718173,4148.2,4148.1,0.02]
[1758596120144,7.81816676,4148.2,4148.1,0.02]
[1758596120545,5.73716676,4148.2,4148.1,0.02]
[1758596120846,7.15016676,4148.2,4148.1,0.02]
[1758596121009,5.06716676,4148.2,4148.1,0.02]
[1758596121209,7.15016676,4148.2,4148.1,0.02]
[1758596121409,8.41685584,4148.2,4148.1,0.02]
[1758596121648,4.93520302,4148.2,4148.1,0.02]
[1758596121829,5.77975725,4148.2,4148.1,0.02]
[1758596122041,4.93520302,4148.2,4148.1,0.02]
[1758596122357,5.06810349,4148.2,4148.1,0.02]
[1758596122542,8.41875514,4148.2,4148.1,0.02]
[1758596122744,7.15210349,4148.2,4148.1,0.02]
[1758596123051,4.95020302,4148.2,4148.1,0.812]
[1758596123275,5.08211758,4148.2,4148.1,0.02]
[1758596124118,4.95020302,4148.2,4148.1,0.02]
[1758596124417,5.7947448,4148.2,4148.1,0.02]
[1758596124642,4.95020302,4148.2,4148.1,0.02]
[1758596124841,4.94920302,4148.2,4148.1,0.2504]
[1758596125156,5.7937448,4148.2,4148.1,0.2504]
[1758596125360,1.5707448,4148.2,4148.1,3.45314226]
[1758596125544,1.5707448,4148.2,4148.1,3.92334226]
[1758596125736,0.72620302,4148.2,4148.1,3.92334226]
[1758596126355,0.72620302,4148.2,4148.1,1.0424]
[1758596126529,1.5707448,4148.2,4148.1,3.45314226]
[1758596126730,0.72620302,4148.2,4148.1,0.02]
[1758596127061,1.5292658,4148.2,4148.1,0.02]
[1758596127364,5.0802658,4148.2,4148.1,0.02]
[1758596127659,0.72620302,4148.2,4148.1,3.92334226]
[1758596127965,1.6916874,4148.2,4148.1,3.92334226]
[1758596128163,2.084,4148.8,4148.1,3.92334226]
[1758596128164,1.68921773,4149.4,4148.6,2.41042545]
[1758596128461,4.231,4150.8,4150.2,0.792]
[1758596128670,0.13228354,4150.7,4150.2,0.792]
[1758596128823,0.13228354,4150.6,4150.5,0.792]
[1758596129026,0.13228354,4150.6,4149.9,0.2304]
[1758596129027,0.13227707,4150.6,4149.8,2.40972004]
[1758596129229,0.13227707,4150.5,4149.9,0.792]
[1758596129423,0.13227707,4150.5,4149.2,24.52686368]
[1758596129424,0.13227707,4150.4,4150.3,0.792]
[1758596129665,0.13227707,4150.4,4150.3,3.20146437]
[1758596129856,4.24,4150.5,4150.4,3.20140632]
[1758596130195,0.13232615,4150.5,4150.4,23.72567]
[1758596130494,0.02,4150.9,4150.7,0.792]
[1758596130806,0.13225142,4150.8,4150.7,3.20123217]
[1758596131097,0.13225142,4150.8,4150.6,0.792]
[1758596131264,0.13225142,4150.7,4150.6,3.20129022]
[1758596131895,0.02,4150.9,4150.8,3.20117413]
[1758596132109,0.15230087,4150.9,4150.8,3.20117413]
[1758596132393,0.02,4151.9,4150.8,0.72469174]
[1758596132593,0.13229637,4151.8,4151.7,3.20065187]
[1758596133096,0.02,4151.9,4151.8,3.20059386]
[1758596133296,0.001,4152.7,4151.8,1.4926]
[1758596133495,0.001,4152.7,4152.5,3.20018197]
[1758596133496,0.13225421,4152.6,4152.5,3.20018197]
[1758596133860,0.13225421,4152.6,4152.5,0.792]
[1758596134072,0.36155421,4152.6,4152.5,0.792]
[1758596134255,0.13225421,4152.6,4152.5,0.792]
[1758596134456,0.13225421,4152.6,4152.5,3.20018783]
[1758596135069,0.001,4152.7,4152.6,3.20012984]
[1758596135271,0.02,4152.9,4152.6,1.51668129]
[1758596135469,0.02,4152.9,4152.8,23.02367755]
[1758596135995,0.02,4152.9,4152.8,23.25407755]
[1758596136800,0.02,4152.9,4152.8,23.02367755]
[1758596136998,0.02,4152.9,4152.8,23.72427755]
[1758596137501,0.02,4152.9,4152.8,26.72427755]
[1758596137698,0.02,4153.9,4152.9,3.792]
[1758596137884,0.02,4153.9,4153.6,3.19955007]
[1758596138194,0.02,4153.9,4153.7,0.792]
[1758596138424,0.02,4153.9,4153.8,3.19943415]
[1758596138574,0.02,4153.9,4153.8,0.792]
[1758596139107,0.2493,4153.9,4153.8,0.792]
[1758596139261,0.02,4153.9,4153.8,0.792]
[1758596141098,0.02,4153.9,4153.8,3.19943415]
[1758596141263,0.02,4153.9,4153.8,0.792]
[1758596142770,0.02,4153.9,4153.8,3.19943415]
[1758596142969,0.02,4153.9,4153.8,0.792]
[1758596143328,0.02,4153.9,4153.8,3.19943415]
[1758596144025,0.02,4153.9,4153.8,3.42983415]
[1758596144026,0.14,4153.9,4153.8,3.42983415]
[1758596144475,0.14,4153.9,4153.8,7.65283415]
[1758596144790,0.02,4153.9,4153.8,7.65283415]
[1758596145188,0.02,4153.9,4153.8,8.12303415]
[1758596145586,0.02,4154.9,4153.9,3.792]
[1758596145788,0.02,4154.9,4154.0,0.02407318]
[1758596145987,0.02,4154.9,4153.9,6.5315]
[1758596145988,0.02,4154.9,4154.8,3.19885472]
[1758596146529,0.02,4154.9,4154.8,0.792]
[1758596147223,0.02,4154.9,4154.8,3.19885472]
[1758596149382,0.02,4154.9,4154.8,3.44982326]
[1758596149580,0.02,4154.9,4154.8,3.88042326]
[1758596149883,0.02,4154.9,4154.8,3.85635472]
[1758596150084,0.02,4154.9,4154.8,3.42575472]
[1758596150295,0.02,4154.9,4154.8,3.19885472]
[1758596150880,0.02,4154.9,4154.8,7.41185472]
[1758596151485,0.02,4154.9,4154.8,8.06935472]
[1758596152181,0.02,4154.9,4154.8,11.06935472]
[1758596152383,1e-08,4154.9,4154.8,11.06935472]
[1758596154498,0.001,4155.4,4154.8,11.06935472]
[1758596154499,0.001,4155.4,4155.3,3.1985651]
[1758596154683,0.001,4155.4,4155.3,7.4075651]
[1758596154888,0.001,4155.4,4155.3,7.6344651]
[1758596155187,0.001,4155.4,4155.3,10.6344651]
[1758596155431,0.001,4155.4,4155.3,11.0650651]
[1758596156803,0.001,4155.4,4155.3,10.6344651]
[1758596157238,0.001,4155.4,4155.3,11.0650651]
[1758596157444,0.001,4155.4,4155.3,8.2279]
[1758596157650,0.001,4155.4,4155.3,10.6344651]
[1758596157936,0.50696146,4155.4,4155.3,10.3975651]
[1758596158984,0.50696146,4155.4,4155.3,6.1985651]
[1758596159239,0.50696146,4155.4,4155.3,3.792]
[1758596159440,1.2928541,4155.4,4155.3,4.197]
[1758596159751,1.51296818,4155.4,4153.6,0.2269]
[1758596159929,0.12,4154.4,4154.2,2.40715638]
[1758596160102,0.12,4154.4,4154.3,0.476]
[1758596160308,0.75972303,4154.4,4154.3,3.6751444]
[1758596160505,0.63972303,4154.4,4154.3,2.8831444]
[1758596160705,0.63972071,4154.4,4154.3,6.6071444]
[1758596160923,0.63972071,4154.4,4154.3,7.3991444]
[1758596161316,0.63972071,4154.4,4153.6,0.4306]
[1758596161317,1.29352071,4154.4,4153.3,2.40768895]
[1758596161514,1.29352071,4154.4,4153.9,2.40732901]
[1758596161515,0.84682632,4154.0,4153.9,2.40732901]
[1758596161716,1.26755518,4154.2,4154.1,2.40726029]
[1758596161967,1.68921773,4154.8,4154.4,0.792]
[1758596161968,0.84688954,4154.5,4154.4,0.792]
[1758596162134,1.26755518,4155.2,4155.1,0.792]
[1758596162452,2.11711773,4155.7,4155.3,0.792]
[1758596162453,1.68921773,4155.7,4155.3,0.792]
[1758596162616,0.2216891,4155.4,4155.3,3.1985651]
[1758596162817,0.6495891,4155.4,4155.3,0.792]
[1758596163022,0.8754891,4155.4,4155.3,0.792]
[1758596163236,0.8754891,4155.4,4154.3,2.40711235]
[1758596163433,1.27188658,4154.6,4154.4,4.21]
[1758596163635,2.14648663,4154.5,4154.2,2.40714913]
[1758596163941,0.22080005,4154.4,4154.3,2.4071444]
[1758596164105,1.49268663,4154.4,4154.3,2.4071444]
[1758596164308,0.44670005,4154.4,4154.3,2.4071444]
[1758596164545,1.49357831,4154.4,4154.3,6.6191444]
[1758596164748,0.22080005,4154.4,4154.3,6.6191444]
[1758596164920,1.4935783,4154.4,4154.3,6.6191444]
[1758596165247,1.4935783,4154.4,4154.3,7.6380444]
[1758596165805,1.4935783,4154.4,4154.3,3.1991444]
[1758596166006,0.87460005,4154.4,4154.3,3.1991444]
[1758596166248,0.44670005,4154.4,4154.3,3.1991444]
[1758596166418,0.44670005,4154.4,4153.7,2.40744314]
[1758596166419,0.87460005,4154.4,4152.7,3.0]
[1758596166624,0.22080005,4154.3,4154.0,2.40731824]
[1758596166938,0.22080005,4154.2,4154.1,3.19926029]
[1758596167118,0.87460005,4154.2,4154.1,3.19926029]
[1758596167340,1.69021773,4154.5,4154.4,2.40708646]
[1758596167545,0.22220836,4154.5,4154.4,3.19908646]
[1758596167732,0.65010836,4154.5,4154.4,0.792]
[1758596167932,0.87600836,4154.5,4154.4,0.792]
[1758596168233,1.91142609,4154.5,4154.4,3.19908646]
[1758596168986,0.22220836,4154.5,4154.4,3.19908646]
[1758596169176,0.22220836,4154.5,4154.4,3.22315732]
[1758596169372,0.22220836,4154.5,4154.4,3.19908646]
[1758596169754,0.22220836,4154.5,4154.4,3.22315732]
[1758596169955,1.49709633,4154.5,4154.4,6.85658646]
[1758596170254,0.22220836,4154.5,4154.4,6.85658646]
[1758596170455,1.68921773,4155.3,4155.2,2.40662302]
[1758596170653,0.001,4156.3,4155.2,2.40662302]
[1758596170654,1.69021773,4155.4,4155.3,0.792]
[1758596170865,1.69021773,4155.4,4155.3,6.7445651]
[1758596171061,0.2269,4155.4,4155.3,6.7445651]
[1758596171477,1.91611773,4155.4,4155.3,6.7445651]
[1758596171677,0.001,4155.4,4155.3,6.7445651]
[1758596171877,0.001,4155.4,4155.3,7.4055651]
[1758596173259,0.001,4155.4,4155.3,4.207]
[1758596173461,0.001,4155.4,4155.3,6.6135651]
[1758596173877,0.13396235,4155.4,4155.3,6.6135651]
[1758596174094,0.64456498,4155.4,4155.3,6.6135651]
[1758596174334,0.64456498,4155.4,4155.3,6.8404651]
[1758596174489,0.64456498,4155.4,4155.3,10.2710651]
[1758596174843,0.64456498,4155.4,4155.3,9.6105651]
[1758596174998,0.64456498,4155.4,4155.3,5.4065651]
[1758596175185,0.64456498,4155.4,4155.3,10.4015651]
[1758596175725,1.35426498,4155.4,4154.3,2.40713092]
[1758596175917,1.70202047,4154.8,4154.1,2.40725581]
[1758596176215,1.70202047,4154.8,4153.4,2.3154]
[1758596176216,0.88426498,4154.7,4153.4,0.7077]
[1758596176379,0.64356498,4154.6,4154.2,2.40717975]
[1758596176583,0.64356498,4154.5,4154.4,2.40708646]
[1758596177077,0.64356498,4154.5,4154.4,6.93085732]
[1758596177303,0.64356498,4154.5,4154.4,6.90678646]
[1758596177580,0.64356498,4154.5,4154.4,11.11978646]
[1758596179933,0.64356498,4154.5,4154.4,10.40908646]
[1758596180140,0.64356498,4154.5,4154.4,9.61608646]
[1758596180341,0.64356498,4154.5,4154.4,2.40708646]
[1758596180342,1.33986498,4154.5,4154.4,2.40708646]
[1758596180634,0.64356498,4154.5,4154.4,6.61808646]
[1758596180832,0.64356498,4154.5,4154.2,2.40716724]
[1758596180833,1.33986498,4154.5,4154.3,2.40709407]
[1758596181031,1.70202047,4155.1,4154.2,6.61817823]
[1758596181239,1.112347,4155.0,4154.3,2.40708846]
[1758596181451,1.112347,4154.9,4154.4,2.40708595]
[1758596181614,0.643547,4154.8,4154.4,2.40708595]
[1758596181934,1.339847,4154.7,4154.4,2.40704872]
[1758596182137,1.339847,4154.6,4154.4,2.40704872]
[1758596182354,1.339847,4154.5,4154.4,2.40704872]
[1758596182511,1.339847,4154.5,4154.4,7.40704872]
[1758596182512,0.86509551,4154.5,4154.4,7.40704872]
[1758596182716,0.643547,4154.5,4154.4,7.40704872]
[1758596183634,0.643547,4154.5,4154.4,7.63864872]
[1758596183837,0.643547,4154.5,4154.4,8.07194872]
[1758596184942,0.5105927,4154.5,4154.4,8.07194872]
[1758596185327,0.2285,4155.4,4154.4,0.792]
[1758596185654,0.12,4154.9,4154.2,0.12]
[1758596185860,0.12,4154.7,4154.6,2.40697058]
[1758596186158,0.76345708,4154.7,4154.6,4.92597058]
[1758596186530,0.76345708,4154.7,4154.6,2.40697058]
[1758596186531,1.45975708,4154.7,4154.6,2.40697058]
[1758596186732,1.68132436,4154.7,4154.6,2.40697058]
[1758596187453,1.68132436,4154.7,4154.3,4.209]
[1758596187454,1.45979197,4154.7,4154.3,4.209]
[1758596187750,1.56140994,4154.6,4154.4,2.40707617]
[1758596187953,2.081,4155.3,4154.5,2.40702852]
[1758596188116,0.86520091,4155.2,4154.5,2.40702852]
[1758596188318,0.86520091,4155.1,4154.5,2.40702852]
[1758596188554,0.12,4154.5,4154.3,0.004]
[1758596188775,0.12,4154.5,4154.3,2.41113378]
[1758596188919,0.2275,4154.7,4154.3,2.41113378]
[1758596189121,1.33995011,4154.6,4154.4,2.40708646]
[1758596189328,0.2275,4154.6,4154.5,2.40702852]
[1758596189526,0.86537817,4154.9,4154.7,2.40687922]
[1758596189856,0.63936498,4155.4,4154.4,2.40708646]
[1758596189857,0.12,4154.5,4154.4,3.19908646]
[1758596190350,0.12,4154.5,4154.3,4.207]
[1758596190351,0.6963,4155.1,4154.9,2.40679679]
[1758596190529,0.2275,4155.0,4154.9,2.40679679]
[1758596191043,0.12,4154.9,4154.5,4.202]
[1758596191243,0.2275,4154.9,4154.7,2.40685497]
[1758596191449,0.12,4154.7,4154.6,2.40697058]
[1758596192319,0.51069318,4155.2,4154.9,2.40674739]
[1758596192532,0.12,4155.0,4154.9,2.40674739]
[1758596193072,0.3475,4155.0,4154.3,0.004]
[1758596193271,0.3475,4155.0,4154.4,4.22307086]
[1758596193566,0.12,4155.0,4154.9,2.40679679]
[1758596193733,0.3475,4155.0,4154.8,2.40684773]
[1758596193926,0.2275,4155.0,4154.8,2.40684773]
[1758596194266,0.001,4155.4,4154.4,4.199]
[1758596194449,0.12,4154.8,4154.7,2.40691265]
[1758596195573,0.001,4155.4,4155.3,2.4065651]
[1758596197257,0.121,4155.4,4155.3,7.6311651]
[1758596197759,0.001,4155.4,4155.3,11.0644651]
[1758596198152,0.001,4155.4,4155.3,6.5501651]
[1758596198462,0.001,4155.4,4155.3,12.8301651]
[1758596198761,0.001,4155.4,4155.3,13.2634651]
[1758596199323,0.001,4155.9,4155.8,2.40627556]
[1758596199634,0.001,4155.9,4155.8,10.51927556]
[1758596199840,0.001,4156.3,4156.2,6.19804398]
[1758596200066,0.001,4156.3,4156.2,12.60004398]
[1758596200235,0.001,4156.3,4156.2,13.26494398]
[1758596201053,0.001,4156.3,4156.2,6.98294398]
[1758596201471,0.001,4156.3,4156.2,13.26394398]
[1758596204429,0.001,4156.3,4156.2,11.17894398]
[1758596204633,0.001,4156.3,4156.2,13.25994398]
[1758596205335,0.001,4156.3,4156.2,12.82564398]
[1758596205535,0.001,4156.3,4156.2,13.25374398]
[1758596206072,0.001,4156.3,4156.2,12.82564398]
[1758596207171,0.001,4156.3,4156.2,6.31804398]
[1758596207377,0.001,4156.3,4156.2,9.71904398]
[1758596207677,0.001,4156.3,4156.2,11.79904398]
[1758596207975,0.001,4156.3,4156.2,12.59104398]
[1758596208337,0.001,4156.3,4156.2,12.83984398]
[1758596208696,0.001,4156.3,4156.2,13.26794398]
[1758596209094,0.001,4156.3,4156.2,12.58904398]
[1758596210605,0.001,4156.3,4156.2,6.31804398]
[1758596210777,0.001,4156.3,4156.2,12.59004398]
[1758596210962,0.001,4156.3,4156.2,12.83884398]
[1758596211209,0.001,4156.3,4156.2,12.59004398]
[1758596211864,0.001,4156.3,4156.2,12.83884398]
[1758596212204,0.001,4156.3,4156.2,13.26694398]
[1758596213496,0.001,4156.3,4156.2,6.31804398]
[1758596213707,0.001,4156.3,4156.2,12.59004398]
[1758596213888,0.001,4156.3,4156.2,12.83884398]
[1758596214206,0.001,4156.3,4156.2,13.26694398]
[1758596214387,0.001,4156.3,4156.2,12.83884398]
[1758596214570,0.001,4156.3,4156.2,13.26694398]
[1758596215075,0.001,4156.6,4156.5,3.19787032]
[1758596215293,0.001,4156.6,4156.5,10.50387032]
[1758596215672,0.001,4156.6,4156.5,11.18077032]
[1758596216613,0.001,4156.6,4156.5,10.75267032]
[1758596220272,0.001,4156.6,4156.5,6.56667032]
[1758596220479,0.001,4156.6,4156.5,6.99477032]
[1758596220807,0.001,4156.6,4156.5,12.57487032]
[1758596221168,0.001,4156.6,4156.5,12.82367032]
[1758596221411,0.2481,4156.6,4156.5,5.52587032]
[1758596221575,0.2481,4156.6,4156.5,11.78287032]
[1758596221910,0.001,4156.6,4156.5,11.78287032]
[1758596222107,0.001,4156.6,4156.5,12.57487032]
[1758596223407,0.001,4156.6,4156.5,10.49187032]
[1758596223408,0.711,4156.6,4156.5,10.49187032]
[1758596223583,0.711,4156.6,4156.5,10.49087032]
[1758596223785,0.711,4156.6,4156.5,12.57087032]
[1758596223977,0.711,4156.6,4156.5,6.31787032]
[1758596224176,0.711,4156.6,4156.5,10.48987032]
[1758596224374,0.001,4156.6,4156.5,10.48987032]
[1758596224773,0.001,4156.6,4156.5,10.73867032]
[1758596225275,0.001,4156.6,4156.5,10.48987032]
[1758596225697,0.001,4156.6,4156.5,6.31787032]
[1758596226015,0.711,4156.6,4156.5,12.56987032]
[1758596226218,0.711,4156.6,4156.5,6.31787032]
[1758596226415,0.711,4156.6,4156.5,12.56787032]
[1758596226887,0.711,4156.6,4156.5,10.48687032]
[1758596227080,0.2481,4156.6,4156.5,10.48687032]
[1758596227782,0.711,4156.6,4156.5,10.48687032]
[1758596227984,0.711,4156.6,4156.5,6.31787032]
[1758596228186,0.711,4156.6,4156.5,10.36487032]
[1758596228680,0.711,4156.6,4155.8,0.004]
[1758596228681,1.57684141,4156.6,4155.8,0.004]
[1758596228881,0.86584141,4156.5,4155.9,4.167]
[1758596229108,0.86584141,4156.4,4156.1,2.40605647]
[1758596229422,0.001,4156.6,4156.1,2.40605647]
[1758596229423,0.71,4156.3,4156.1,4.169]
[1758596229727,0.71,4156.2,4156.1,4.169]
[1758596229882,0.71,4156.2,4156.1,4.17]
[1758596230388,0.71,4156.2,4156.1,6.57610187]
[1758596230927,0.71,4156.2,4155.8,0.004]
[1758596232021,0.86466684,4156.1,4155.8,0.004]
[1758596232202,0.86461068,4156.0,4155.8,0.004]